Cogmind - Beta 14 @@@ ROGUE MODE // 2024.11.14 @ 19:52:35 Player: MarKhan Result: Destroyed by G-34 Mercenary with Small Laser Performance ------------- Evolutions (0) 0 Regions Visited (1) 200 Robots Destroyed (11) 55 Value Destroyed (288) 288 Prototype IDs (0) 0 Alien Tech Used (0) 0 Bonus (0) 0 TOTAL SCORE: 543 Bonus ------- None Cogmind --------- Core Integrity 0/250 Matter 213/300 Energy 98/100 System Corruption 0% Temperature Cool (6) Movement Core (150) Ox2 Location -10/Materials Parts ------- > --- POWER (1) -------- (None) > --- PROPULSION (2) --- (None) > --- UTILITY (2) ------ Signal Interpreter Seismic Detector > --- WEAPON (2) ------- Shotgun Shotgun > --- INVENTORY (5) ---- Light Ion Engine Shotgun Grenade Launcher Mining Laser Peak State ------------ > --- POWER ------------ (None) > --- PROPULSION ------- (None) > --- UTILITY ---------- Signal Interpreter Seismic Detector > --- WEAPON ----------- Shotgun Shotgun > --- INVENTORY -------- Light Ion Engine Shotgun Grenade Launcher Mining Laser [Rating: 6] Favorites ----------- Power None Propulsion None Utility Seismic Detector Device Seismic Detector Processor Signal Interpreter Weapon Shotgun Energy Gun Small Laser Energy Cannon Beam Cannon Ballistic Gun Shotgun Special Weapon Mining Laser Build | -11 -10 ------- Run | Yrd Mat Slots Evolved . | . . Power . | . . Propulsion . | . . Utility . | . . Weapon . | . . Parts Attached 15 | 4 11 Power . | . . Engine . | . . Core . | . . Reactor . | . . Propulsion . | . . Treads . | . . Leg . | . . Wheel . | . . Hover . | . . Flight . | . . Utility 4 | 1 3 Device 3 | 1 2 Storage . | . . Processor 1 | . 1 Hackware . | . . Protection . | . . Artifact . | . . Weapon 11 | 3 8 Energy Gun 5 | 2 3 Energy Cannon 1 | . 1 Ballistic Gun 3 | . 3 Ballistic Cannon . | . . Launcher . | . . Special Weapon 2 | 1 1 Impact Weapon . | . . Slashing Weapon . | . . Piercing Weapon . | . . Special Melee Weapon . | . . Unidentified Prototypes . | . . Parts Lost 2 | . 2 Power . | . . Propulsion . | . . Utility 1 | . 1 Weapon 1 | . 1 Highest Loss Streak 2 | . 2 To Critical Strikes . | . . Average Slot Usage (%) 35 | . 35 Device 11 | . 11 Processor 3 | . 3 Energy Gun 6 | . 6 Energy Cannon 1 | . 1 Ballistic Gun 7 | . 7 Special Weapon 3 | . 3 Peak Build Rating 6 | 3 6 Average Rating 2 | 2 2 On Entrance 1 | . 3 Naked Turns 1 | . 1 Heaviest Build 7 | 4 7 Greatest Support 3 | 3 3 Greatest Overweight (x) 2 | 1 2 Average Overweight (x) . | . . Largest Inventory Capacity 5 | 5 5 Average Capacity 5 | 5 5 Most Carried 5 | 4 5 Average Carried 4 | 1 4 Final Capacity 5 | 5 5 Final Carried 4 | 3 4 Class Distribution -------------------- 100% | Mutant Dominant Class ---------------- Mutant | -10/Materials Resources | -11 -10 ----------- Run | Yrd Mat Matter Collected 370 | 237 133 Remotely . | . . Salvage Created 413 | 86 327 Parts 25 | 4 21 Haulers Intercepted . | . . Recyclers Shooed . | . . Parts Field Recycled . | . . Retrieved Matter . | . . Parts Self-Destructed . | . . Prevented . | . . Kills | -11 -10 ------- Run | Yrd Mat Combat Hostiles Destroyed 6 | . 6 Guns 3 | . 3 Cannons 3 | . 3 Classes Destroyed 6 | 2 4 Tunneler 1 | 1 . Recycler 1 | 1 . Mechanic 1 | . 1 Operator 1 | . 1 Watcher 1 | . 1 Grunt 6 | . 6 Best Kill Streak 2 | 2 2 Combat Bots Only 2 | . 2 Max Kills in Single Turn 1 | 1 1 Gunslinging . | . . Exploded . | . . Melee . | . . Uniques/NPCs Destroyed . | . . Combat | -11 -10 -------- Run | Yrd Mat Hostile Shots Fired 47 | . 47 Missed 11 | . 11 Damage Taken 500 | . 500 Core 253 | . 253 Absorbed by Shields . | . . Core Remaining (%) 100 | 100 . Volleys Fired 59 | 7 52 Largest 2 | 2 2 Hottest 100 | 90 100 Shots Fired 93 | 14 79 Gun 70 | 14 56 Cannon 14 | . 14 Launcher . | . . Special 9 | . 9 Kinetic 42 | . 42 Thermal 51 | 14 37 Explosive . | . . Electromagnetic . | . . Robot Hit Streak 19 | 6 19 Robot Miss Streak 4 | 2 4 Penetration Max . | . . Secondary Targets . | . . Shots Hit Robots 70 | 11 59 Core Hits 24 | 3 21 Critical Kills . | . . Critical Parts Destroyed . | . . Critical Strikes . | . . Melee Attacks . | . . Impact . | . . Slashing . | . . Piercing . | . . Sneak Attacks . | . . Combat Hostiles . | . . Follow-up Attacks . | . . Damage Inflicted 918 | 131 787 Guns 723 | 131 592 Cannons 195 | . 195 Explosions . | . . Melee . | . . Ramming . | . . Kinetic 471 | . 471 Thermal 447 | 131 316 Explosive . | . . Electromagnetic . | . . Impact . | . . Slashing . | . . Piercing . | . . Highest Corruption . | . . Average Corruption . | . . Corruption Purged . | . . Corruption Blocked . | . . Overload Shots . | . . Overflow Damage . | . . Projectiles . | . . Explosions . | . . Melee . | . . Knockbacks . | . . Impact . | . . Kinetic . | . . Secondary . | . . Self-Inflicted Damage . | . . Shots . | . . Rammed . | . . Targets Rammed . | . . Kicked . | . . Crushed . | . . Highest Temperature 159 | 45 159 Average Temperature 40 | 19 47 Received Heat Transfer 300 | . 300 Siege Activations . | . . Robots Corrupted . | . . Combat Hostiles . | . . Parts Fried . | . . Impact Corruptions . | . . Robots Melted . | . . Combat Hostiles . | . . Parts Melted 3 | . 3 Heat Transferred 1041 | 347 694 Parts Sabotaged . | . . Parts Stolen . | . . Parts Stripped . | . . Power Chain Reactions . | . . Alert | -11 -10 ------- Run | Yrd Mat Peak Influence 306 | 10 306 Initial 6 | . 6 Average 150 | 3 167 Maximum Alert Level 1 | . 1 Low Security (%) 62 | 100 58 Level 1 37 | . 41 Level 2 . | . . Level 3 . | . . Level 4 . | . . Level 5 . | . . High Security . | . . Max Security . | . . Squads Dispatched 1 | . 1 Investigation . | . . Extermination . | . . Reinforcement 1 | . 1 Assault . | . . Garrison . | . . Intercept . | . . Searches Triggered . | . . Construction Impeded . | . . Haulers Reinforced . | . . Active Scanning Responses . | . . Cargo Convoy Interrupts . | . . Stealth | -11 -10 --------- Run | Yrd Mat Distress Signals 1 | . 1 Communications Jammed . | . . Distress Signals . | . . Times Spotted 18 | . 18 Peak Tracking Total 5 | . 5 Tactical Retreats 2 | . 2 Traps | -11 -10 ------- Run | Yrd Mat Traps Triggered 1 | . 1 Indirectly . | . . Trap Hack Attempts . | . . Triggered . | . . Disarmed . | . . Reprogrammed . | . . Reused . | . . Traps Extracted . | . . Installed . | . . Triggered . | . . Machines | -11 -10 ---------- Run | Yrd Mat Machines Disabled . | . . Max in Single Turn . | . . Machines Repaired . | . . Machines Dismantled . | . . Machines Sabotaged . | . . Overloaded Fab Kills . | . . Hacking | -11 -10 --------- Run | Yrd Mat Machines Accessed 7 | . 7 Terminals 5 | . 5 Fabricators . | . . Repair Stations . | . . Recycling Units 2 | . 2 Scanalyzers . | . . Garrison Access . | . . Total Hacks 26 | . 26 Successful 19 | . 19 Failed 7 | . 7 Catastrophic . | . . Database Lockouts . | . . Manual 21 | . 21 Terminals 18 | . 18 Fabricators . | . . Repair Stations . | . . Recycling Units 8 | . 8 Scanalyzers . | . . Garrison Access . | . . Terminal Hacks 1 | . 1 Zone Layout 1 | . 1 Fabricator Hacks . | . . Repair Station Hacks . | . . Recycling Unit Hacks 2 | . 2 Retrieve Components 2 | . 2 Scanalyzer . | . . Garrison Access Hacks . | . . Unauthorized Hacks 16 | . 16 Terminals 11 | . 11 Track 1 | . 1 Assimilate 2 | . 2 Botnet 2 | . 2 Operators 1 | . 1 Skim 5 | . 5 Fabricators . | . . Repair Stations . | . . Recycling Units 5 | . 5 Monitor 1 | . 1 Reject 2 | . 2 Recyclers 2 | . 2 Scanalyzers . | . . Garrison Access . | . . Data Cores Recovered . | . . Used . | . . Hacking Detections 5 | . 5 Full Trace Events . | . . Feedback Events . | . . Feedback Blocked . | . . Robot Schematics Acquired . | . . Robots Built . | . . Authchips . | . . Time . | . . Total Robot Build Rating . | . . Part Schematics Acquired . | . . Parts Built . | . . Authchips . | . . Time . | . . Total Part Build Rating . | . . Parts Repaired . | . . Time . | . . Parts Recycled . | . . Recycled Matter . | . . Retrieved Matter . | . . Retrieved Components 3 | . 3 Parts Scanalyzed . | . . Part Schematics Acquired . | . . Parts Damaged . | . . Bothacking | -11 -10 ------------ Run | Yrd Mat Used RIF Installer . | . . Robots Hacked . | . . Non-combat . | . . Combat . | . . Robot Hacks Applied . | . . Relay Couplers Released . | . . Fabnet Peak Effective % . | . . Robots Rewired . | . . Allies Hacked . | . . Hacks Repelled . | . . Allies | -11 -10 -------- Run | Yrd Mat Total Allies 1 | . 1 Largest Group 1 | . 1 Highest-Rated Group 10 | . 10 Highest-Rated Ally 10 | . 10 Total Orders . | . . Ally Attacks . | . . Total Damage . | . . Kills . | . . Allies Corrupted . | . . Allies Melted . | . . Intel | -11 -10 ------- Run | Yrd Mat Robot Analysis Total . | . . Derelict Logs Recovered . | . . Drone Launches . | . . Drone Recoveries . | . . Exploration | -11 -10 ------------- Run | Yrd Mat Turns Passed 589 | 60 529 Spaces Moved 613 | 54 559 Core 613 | 54 559 Treads . | . . Legs . | . . Wheels . | . . Hover . | . . Flight . | . . Fastest Speed 50 | 50 50 Average Speed 61 | 54 62 Slowest Speed 150 | 100 150 Overloaded Moves . | . . Propulsion Burnouts . | . . Robots Hopped . | . . Cave-ins Triggered . | . . Exploration Rate (%) 35 | 3 67 Regions Visited 1 Branch Regions . Pre-discovered Areas 1 | . 1 Known Exits Taken . | . . Unknown Exits Taken 1 | 1 . Scrap Searched . | . . Spaces Dug 9 | . 9 Terrain Destroyed 9 | . 9 Melee . | . . Projectile 9 | . 9 AOE . | . . Terrain Rammed . | . . Walls Destroyed . | . . Machines Disabled . | . . Actions | -11 -10 --------- Run | Yrd Mat Total 715 | 68 647 Wait 10 | . 10 Move 612 | 53 559 Hop . | . . Pick Up 11 | 3 8 Fast Attach 7 | 3 4 Attach 4 | 1 3 Detach 2 | 1 1 Swap 4 | . 4 Drop 6 | . 6 Fire 59 | 7 52 Melee . | . . Ram . | . . Kick . | . . Crush . | . . Escape Stasis . | . . Rewire . | . . Trap . | . . Miscellaneous . | . . Route ------- -11/Scrapyard -10/Materials (discovered 4 exits: *Mat x3 / Min) History --------- Turn | Location | Event 13 | -11/Scrapyard | Discovered new exit (range 15) 61 | -11/Scrapyard | Entered Materials 208 | -10/Materials | Core integrity fell below 50% 240 | -10/Materials | Core integrity fell below 20% 308 | -10/Materials | Build established: Mutant 398 | -10/Materials | Discovered new exit (range 5) 465 | -10/Materials | Learned Storage stockpile data 506 | -10/Materials | Discovered new exit (range 16) 510 | -10/Materials | Learned 4 Subcaves zone layouts 547 | -10/Materials | Learned location of 2 exits from Mines 572 | -10/Materials | Identified exit to Mines 572 | -10/Materials | Identified exit to Materials 590 | -10/Materials | Destroyed by G-34 Mercenary with Small Laser Last Messages --------------- 00492_ O-16 Technician: "IFF HANDSHAKE FAILED. SECURING TERMINAL." 00505_ ALERT: Hostiles spotted, dispatching reinforcements to Terminal M001. 00506_ EXIT=FOUND 00510_ >> SKIM: Stored Subcaves zone layouts (x4). 00523_ G-34 Mercenary destroyed. 00526_ Acquired 30 matter. 00527_ K-01 Serf collects debris. 00537_ Destroyed Hover Unit. 00547_ >> SKIM: Stored Mines exits (x2). 00547_ Destroyed Datajack. 00547_ O-16 Technician destroyed. 00552_ Acquired 13 matter. 00572_ >> SKIM: Loading 2 Materials exits... 00582_ G-47 Trooper destroyed. 00585_ >> SKIM: World map updated: -9/Materials. 00587_ >> MONITOR: Recycling Unit M002 accepting Beam Cannon (30%). Map ----- +----------------------------------------------------+ | ############### #??????????? ??# " # # " | | #??????????? ??#""" + # " | | ############ ###""" # + | | ##""" # # | | ############### # ## "" # ### | | ??????????????####### ##""" #! ### | | ???????????????##! ?# ############"" #% + | | ???????????????#! ## ##????????##"" / ### | | ???????????????#! #????????## " # #?# | | ???????????????#! #????????## # #?# | | ???????????????#! #????????########## #?# | | ???????????????##! #????????## # % #?# | | ????????????????#### #???####### ! # #?# | | ???????????????????## [ ##???# # """ # #?# | | ????????????????????# #????# T ! # """ # ### | | ????????????????????# #????# # """ # | | ????????????????????# #????# """# + | | ????????????????????# ######= """# """ # | | ????????????????????# = # """# """ # ##### | | ????????????????????# = * + # """ # ## | | ????????????????????# # """# # ## | | ????????????????????# ##g### """# # ## | | ???????????????#+#+## # ## """######### ## | | ???????????????# # ## #??????## ## | | ???????????????# %+ ## #???????# ## | | ???????????????# #@ ########???????# ##+## | | ???????????????###+## < # #??????????????# | | ????????????????????# # #????????????######+## | | ????????????????????##### #????????????# # | | ????????????????o???????#####????????????# [ + | | ?????????????????????????????????????????# [ # | | ?????????????????????????????????????????# !# | | ?????????????????????????????????????????# # | | ?????????????????????????????????????????######### | | | | | | | | | | | | | | | | | | | | | | | | | | | | | | | | | +----------------------------------------------------+ Best States ------------- Heat Dissipation 25 Energy Generation 5 Energy Capacity 100 Matter Stores 300 Matter Capacity 300 Sight Range 16 Terrain Scan Density 10 Evasion (%) 50 Item Schematics ----------------- None Robot Schematics ------------------ None Fabricated ------------ Nothing Alien Tech Used ----------------- None Achievements -------------- None Challenges ------------ None Game ------ Seed ModifiedSupersonicSuite Manual? 0 Play Time 00:14:45 Cumulative 100.1 hours Start 2024.11.14 @ 19:42:36 End 2024.11.14 @ 19:52:35 Sessions 1 Manual Loads 0 Difficulty Rogue Special Mode None Game No. 101 Rogue 101 Adventurer 0 Explorer 0 Win Type - Total 2 Types 2/0/0/0/0/0/0/0/0 Lore% 51 Gallery% 51 Achievement% 43 Wizard Run 0 Options --------- Layout 1 ASCII 0 Keyboard 1 Movement Arrows Keybinds 0 Fullscreen 2 Font 24/Smallcaps Map View 50x35 Zoom Use 0% Tactical HUD 1 Map Filters NONE Filters NONE Steam 1 RUN: 2fe03d87-4aaf-420b-9162-0fbf5bad4e0f